bitfinex/quotes_BTCUSD_20241001
["timestamp","ask_amount","ask_price","bid_price","bid_amount"]
[1727797607111,0.92483253,62770.0,62769.0,3.90904466]
[1727797608069,0.93883253,62770.0,62769.0,3.90904466]
[1727797608293,0.92483253,62770.0,62769.0,3.90904466]
[1727797608789,0.91183253,62770.0,62769.0,3.90904466]
[1727797609056,0.29699084,62770.0,62769.0,3.90904466]
[1727797609401,0.19341879,62770.0,62769.0,3.90904466]
[1727797609582,0.36675981,62770.0,62769.0,3.90904466]
[1727797609812,0.35275977,62770.0,62769.0,3.90904466]
[1727797610066,0.35175977,62770.0,62769.0,3.90904466]
[1727797610309,0.51320655,62770.0,62769.0,3.90904466]
[1727797610542,0.59400655,62770.0,62769.0,3.90904466]
[1727797610766,0.59760094,62770.0,62769.0,3.90904466]
[1727797611012,0.61860094,62770.0,62769.0,3.90904466]
[1727797611246,0.17057787,62763.0,62762.0,0.00164]
[1727797611473,0.45757785,62763.0,62762.0,0.00164]
[1727797611951,0.45257785,62763.0,62762.0,0.00164]
[1727797612203,0.45757785,62763.0,62762.0,0.00164]
[1727797612455,0.79312126,62763.0,62762.0,0.00164]
[1727797612723,0.82612126,62763.0,62762.0,0.00164]
[1727797612951,0.84012126,62763.0,62762.0,0.00164]
[1727797613472,0.52914428,62754.0,62745.0,0.23945404]
[1727797613733,0.71197311,62754.0,62745.0,0.23945404]
[1727797613998,0.71398762,62754.0,62737.0,0.0150612]
[1727797614224,0.71198762,62754.0,62737.0,0.0150612]
[1727797614944,0.67930708,62754.0,62737.0,0.0150612]
[1727797615188,0.67930708,62754.0,62738.0,0.32074446]
[1727797615189,0.33876367,62754.0,62738.0,0.32074446]
[1727797615434,0.35276367,62754.0,62744.0,0.318754]
[1727797615671,0.35276367,62754.0,62741.0,0.31948846]
[1727797615900,0.35276367,62754.0,62744.0,0.318754]
[1727797616143,0.35276367,62754.0,62751.0,0.159358]
[1727797616144,0.19341167,62754.0,62751.0,0.159358]
[1727797616401,0.35276367,62754.0,62747.0,0.320382]
[1727797616624,0.19341167,62754.0,62749.0,0.159362]
[1727797616844,0.27898812,62754.0,62747.0,0.320382]
[1727797617308,0.02295387,62754.0,62753.0,0.160998]
[1727797617313,0.01853909,62754.0,62753.0,0.16131746]
[1727797617529,0.02295387,62754.0,62753.0,0.349898]
[1727797617982,0.03695387,62754.0,62753.0,0.349898]
[1727797618431,0.02795387,62754.0,62753.0,0.190544]
[1727797618656,0.34376367,62754.0,62753.0,0.001644]
[1727797618905,0.44237552,62754.0,62753.0,0.001644]
[1727797619390,0.44437552,62754.0,62753.0,0.001644]
[1727797619625,0.44137552,62754.0,62753.0,0.001644]
[1727797619854,0.43937552,62754.0,62753.0,0.001644]
[1727797620080,0.44576152,62754.0,62753.0,0.001644]
[1727797620353,0.45776152,62754.0,62753.0,0.001644]
[1727797621263,0.48244206,62754.0,62753.0,0.001644]
[1727797621491,0.47244206,62754.0,62753.0,0.001644]
[1727797621742,0.80998547,62754.0,62753.0,0.001644]
[1727797621966,0.78130493,62754.0,62753.0,0.001644]
[1727797622222,0.35731558,62754.0,62753.0,0.001644]
[1727797622488,0.21379767,62754.0,62753.0,0.001644]
[1727797622734,0.04333987,62754.0,62753.0,0.160998]
[1727797622989,0.36676367,62754.0,62753.0,0.001644]
[1727797623250,0.33426763,62754.0,62753.0,0.001644]
[1727797623523,0.05095387,62754.0,62753.0,0.16131746]
[1727797623781,0.03225277,62754.0,62753.0,0.26131746]
[1727797624239,0.02266755,62754.0,62753.0,0.00196346]
[1727797624465,0.38854751,62754.0,62753.0,0.001644]
[1727797624686,0.24219551,62754.0,62753.0,0.001644]
[1727797624964,0.02266755,62754.0,62753.0,0.00196346]
[1727797625195,0.19012535,62754.0,62753.0,0.001644]
[1727797625419,0.34947735,62754.0,62753.0,0.001644]
[1727797625654,0.29981159,62754.0,62753.0,0.001644]
[1727797625900,0.03366755,62754.0,62753.0,0.001644]
[1727797626127,0.03366755,62754.0,62753.0,0.26131746]
[1727797626128,0.02741868,62754.0,62753.0,0.26131746]
[1727797626373,0.04041868,62754.0,62753.0,0.34451746]
[1727797626835,0.013,62754.0,62753.0,0.52581746]
[1727797627299,0.013,62754.0,62753.0,0.68227526]
[1727797627534,0.013,62754.0,62753.0,0.53837964]
[1727797627793,0.013,62754.0,62753.0,0.44261746]
[1727797628065,0.17860087,62754.0,62753.0,0.001644]
[1727797628311,0.33991876,62754.0,62753.0,0.001644]
[1727797628552,0.00624887,62751.0,62750.0,0.00125]
[1727797628804,0.00624887,62751.0,62750.0,0.16093146]
[1727797629040,0.00624887,62751.0,62750.0,0.32029346]
[1727797629041,0.00441478,62751.0,62750.0,0.32029346]
[1727797629305,0.00411946,62751.0,62750.0,0.16093146]
[1727797629542,0.00595355,62751.0,62750.0,0.10156946]
[1727797629792,0.00595355,62751.0,62750.0,0.26093146]
[1727797630047,0.00183409,62751.0,62750.0,0.26093146]
[1727797630264,0.02019009,62753.0,62752.0,0.25967646]
[1727797630489,0.02019009,62753.0,62752.0,0.45187646]
[1727797630705,0.02430955,62753.0,62752.0,0.45187646]
[1727797631445,0.018356,62753.0,62752.0,0.45187646]
[1727797631715,0.320272,62770.0,62769.0,0.25963346]
[1727797631716,0.001646,62770.0,62769.0,0.25963346]
[1727797631978,0.00759955,62770.0,62769.0,0.44463346]
[1727797632207,0.00759955,62770.0,62769.0,0.28531946]
[1727797632481,0.00759955,62770.0,62769.0,0.44463346]
[1727797632700,0.001646,62770.0,62769.0,0.44463346]
[1727797632926,0.001646,62770.0,62769.0,0.52313346]
[1727797633165,0.00348009,62770.0,62769.0,0.52313346]
[1727797633636,0.00519406,62770.0,62769.0,0.52313346]
[1727797634120,0.00335997,62770.0,62769.0,0.67959126]
[1727797634363,0.00335997,62770.0,62769.0,0.99513467]
[1727797634612,0.00335997,62770.0,62769.0,1.01813467]
[1727797634866,0.00135997,62770.0,62769.0,1.01813467]
[1727797635093,0.23945404,62784.0,62769.0,1.01813467]
[1727797635094,0.23945404,62784.0,62783.0,0.159278]
[1727797635329,0.24540759,62784.0,62783.0,0.159278]
[1727797635568,0.00183409,62778.0,62773.0,0.318603]
[1727797635803,0.00183409,62778.0,62777.0,0.159294]
[1727797636036,0.00595355,62778.0,62777.0,0.159294]
[1727797636281,0.159274,62785.0,62773.0,0.259304]
[1727797636282,0.00595355,62774.0,62773.0,0.259304]
[1727797636519,0.318522,62790.0,62773.0,0.259304]
[1727797636520,0.00183409,62776.0,62775.0,0.259299]
[1727797636970,0.00595355,62776.0,62775.0,0.259299]
[1727797638156,0.00695355,62776.0,62775.0,0.263299]
[1727797638376,0.00595355,62776.0,62775.0,0.259299]
[1727797638605,0.00183409,62780.0,62779.0,0.259288]
[1727797639273,0.00595355,62780.0,62779.0,0.259288]
[1727797639749,0.00595355,62778.0,62777.0,0.159293]
[1727797640562,0.00595355,62778.0,62775.0,0.004]
[1727797640563,0.00595355,62776.0,62775.0,0.004]
[1727797640788,0.00183409,62770.0,62769.0,0.477942]
[1727797641014,0.00183409,62770.0,62767.0,0.65418141]
[1727797641015,0.32195404,62791.0,62767.0,0.33554341]
[1727797641258,0.32195404,62791.0,62780.0,0.159286]
[1727797641259,0.23945404,62781.0,62780.0,0.159286]
[1727797641728,0.318528,62789.0,62781.0,0.318563]
[1727797641982,0.23945404,62791.0,62781.0,0.318563]
[1727797641983,0.23945404,62783.0,62781.0,0.318563]
[1727797642200,0.159288,62780.0,62777.0,0.1]
[1727797642449,0.3157408,62782.0,62777.0,0.1]
[1727797642667,0.1564578,62782.0,62778.0,0.318581]
[1727797642887,0.01639764,62781.0,62778.0,0.47787]
[1727797643133,0.01639764,62781.0,62780.0,0.159286]
[1727797643388,0.159287,62780.0,62776.0,0.259295]
[1727797643615,0.09623746,62781.0,62779.0,0.159288]
[1727797643837,0.159287,62780.0,62776.0,0.259295]
[1727797644060,0.01611181,62781.0,62780.0,0.159286]
[1727797644306,0.01611181,62781.0,62780.0,0.49482941]
[1727797644550,0.01611181,62781.0,62780.0,0.59482941]
[1727797645527,0.01611181,62781.0,62780.0,0.259286]
[1727797645769,0.02311181,62781.0,62780.0,0.259286]
[1727797646279,0.01611181,62781.0,62780.0,0.259286]
[1727797646498,0.01711181,62781.0,62780.0,0.259286]
[1727797646961,0.01775781,62781.0,62780.0,0.259286]
[1727797647197,0.01875781,62781.0,62780.0,0.259286]
[1727797647922,0.01875781,62781.0,62780.0,0.30038285]
[1727797648142,0.01875781,62781.0,62780.0,0.262286]
[1727797648360,0.01875781,62781.0,62780.0,0.259286]
[1727797648597,0.01875781,62781.0,62780.0,0.262286]
[1727797651428,0.01875781,62781.0,62780.0,0.4187438]
[1727797651890,0.002646,62781.0,62780.0,0.4187438]
[1727797652371,0.001646,62781.0,62780.0,0.4187438]
[1727797652612,0.001646,62781.0,62780.0,0.4157438]
[1727797652850,0.001646,62781.0,62780.0,0.4167438]
[1727797653101,0.001646,62781.0,62780.0,0.260286]
[1727797653551,0.00136078,62781.0,62780.0,0.260286]
[1727797653779,0.00236078,62781.0,62780.0,0.260286]
[1727797655201,0.00236078,62781.0,62780.0,0.259286]
[1727797655882,0.00236078,62781.0,62780.0,0.262286]
[1727797656122,0.00236078,62781.0,62780.0,0.103]
[1727797656369,0.16164378,62781.0,62780.0,0.003]
[1727797656618,0.00236078,62781.0,62780.0,0.003]
[1727797656870,0.00236078,62781.0,62780.0,0.262286]
[1727797657345,0.00136078,62781.0,62780.0,0.262286]
[1727797658107,0.00136078,62781.0,62780.0,0.75214065]
[1727797658356,0.24109804,62796.0,62780.0,0.75214065]
[1727797658357,0.24109804,62796.0,62795.0,0.49479141]
[1727797658592,0.24109804,62796.0,62795.0,0.59479141]
[1727797658884,0.001644,62796.0,62795.0,0.77424921]
[1727797659355,0.001644,62796.0,62795.0,0.259248]
[1727797659870,0.002644,62796.0,62795.0,0.263248]
[1727797660339,0.009644,62796.0,62795.0,0.263248]
[1727797660596,0.009644,62796.0,62795.0,0.64637986]
[1727797660597,0.008644,62796.0,62795.0,0.64637986]
[1727797660869,0.008644,62796.0,62795.0,0.75600986]
[1727797661119,0.000822,62798.0,62795.0,0.75600986]
[1727797661120,0.000822,62798.0,62797.0,0.282243]
[1727797661365,0.000822,62798.0,62797.0,0.4387008]
[1727797662331,0.23945404,62814.0,62813.0,0.77764541]
[1727797662584,0.23945404,62814.0,62813.0,0.95710321]
[1727797662849,0.23945404,62814.0,62813.0,0.442102]
[1727797663088,0.23945404,62828.0,62813.0,0.1]
[1727797663089,0.159167,62827.0,62813.0,0.1]
[1727797663363,0.159167,62827.0,62816.0,0.259195]
[1727797663624,0.23945404,62828.0,62816.0,0.259195]
[1727797665583,0.39861904,62828.0,62816.0,0.259195]
[1727797665851,0.39861904,62828.0,62816.0,0.260195]
[1727797666349,0.1822116,62817.0,62816.0,0.001]
[1727797666600,0.3414036,62817.0,62816.0,0.005]
[1727797666860,0.3172938,62817.0,62816.0,0.005]
[1727797667109,0.34224652,62817.0,62816.0,0.005]
[1727797667354,0.34224652,62817.0,62816.0,0.004]
[1727797667837,0.34224652,62817.0,62801.0,0.33554341]
[1727797667838,0.34224852,62817.0,62801.0,0.33554341]
[1727797668091,0.03959672,62817.0,62816.0,0.001]
[1727797668825,0.05259672,62817.0,62816.0,0.002]
[1727797669091,0.027644,62817.0,62816.0,0.002]
[1727797669337,0.014644,62817.0,62816.0,0.160195]
[1727797669566,0.027644,62817.0,62816.0,0.161195]
[1727797669794,0.001644,62817.0,62816.0,0.159195]
[1727797670019,0.001644,62817.0,62816.0,0.259195]
[1727797670299,0.028644,62817.0,62816.0,0.261195]
[1727797670532,0.015644,62817.0,62816.0,0.260195]
[1727797671004,0.015644,62817.0,62816.0,0.259195]
[1727797671005,0.001644,62817.0,62816.0,0.259195]
[1727797671237,0.001644,62817.0,62816.0,0.261195]
[1727797671503,0.001644,62817.0,62816.0,0.49424593]
[1727797671768,0.001644,62817.0,62816.0,0.45114908]
[1727797673486,0.002644,62817.0,62816.0,0.45814908]
[1727797673712,0.00235878,62817.0,62816.0,0.45814908]
[1727797673947,0.00335878,62817.0,62816.0,0.46414908]
[1727797674409,0.00235878,62817.0,62816.0,0.45814908]
[1727797674666,0.00235878,62817.0,62816.0,0.46414908]
[1727797674897,0.00335878,62817.0,62816.0,0.46414908]
[1727797676077,0.00335878,62817.0,62816.0,0.28469128]
[1727797677010,0.00335878,62817.0,62816.0,0.44114908]
[1727797677481,0.00335878,62817.0,62816.0,0.46414908]
[1727797680162,0.00335878,62817.0,62816.0,0.18469128]
[1727797681443,0.00335878,62817.0,62816.0,0.28469128]
[1727797682904,0.00335878,62817.0,62816.0,0.50531537]
[1727797683110,0.00335878,62817.0,62816.0,0.72774908]
[1727797683584,0.00335878,62817.0,62816.0,0.72974908]
[1727797683832,0.00335878,62817.0,62816.0,0.72774908]
[1727797684997,0.001646,62833.0,62832.0,0.259154]
[1727797685280,0.00017396,62833.0,62832.0,0.282154]
[1727797685548,0.001644,62837.0,62836.0,0.287144]
[1727797686032,0.001644,62837.0,62836.0,0.4536018]
[1727797686932,0.001644,62837.0,62836.0,0.4486018]
[1727797687185,0.001644,62837.0,62836.0,0.42772739]
[1727797687425,0.001644,62837.0,62836.0,0.45072739]
[1727797687887,0.002644,62837.0,62836.0,0.46172739]
[1727797688184,0.002644,62837.0,62836.0,0.43872739]
[1727797688401,0.003644,62837.0,62836.0,0.29426959]
[1727797689584,0.003644,62837.0,62836.0,0.47372739]
[1727797690769,0.003644,62837.0,62836.0,0.31726959]
[1727797691024,0.003644,62837.0,62836.0,0.182144]
[1727797691443,0.003644,62837.0,62836.0,0.023]
[1727797691444,0.17927367,62837.0,62836.0,0.023]
[1727797691446,0.02813139,62837.0,62836.0,0.023]
[1727797691693,0.18727239,62837.0,62836.0,0.023]
[1727797692170,0.33569579,62837.0,62836.0,0.023]
[1727797692636,0.61319579,62837.0,62836.0,0.023]
[1727797692866,0.61319579,62837.0,62827.0,0.03193]
[1727797692867,0.159164,62828.0,62827.0,0.03193]
[1727797693102,0.41217479,62828.0,62827.0,0.03193]
[1727797693358,0.15919,62818.0,62814.0,0.191128]
[1727797693585,0.01645299,62817.0,62816.0,0.03193]
[1727797694554,0.01645299,62817.0,62816.0,0.191125]
[1727797695149,0.01645299,62817.0,62816.0,0.03193]
[1727797695392,0.01645299,62817.0,62816.0,0.04593]
[1727797695393,0.45870369,62817.0,62816.0,0.04593]
[1727797695870,0.45970369,62817.0,62816.0,0.05993]
[1727797696107,0.41030279,62817.0,62816.0,0.05993]
[1727797696337,0.43524975,62817.0,62816.0,0.05993]
[1727797698064,0.43704726,62817.0,62816.0,0.05993]
[1727797698318,0.43704726,62817.0,62798.0,0.24027604]
[1727797698319,0.159238,62799.0,62798.0,0.000822]
[1727797698560,0.01,62815.0,62799.0,0.03193]
[1727797698561,0.159236,62800.0,62799.0,0.03193]
[1727797698804,0.09773932,62800.0,62799.0,0.03193]
[1727797699549,0.01663932,62800.0,62799.0,0.191168]
[1727797701267,0.0825,62815.0,62804.0,0.03193]
[1727797701510,0.23945404,62809.0,62808.0,0.191145]
[1727797701733,0.25603118,62809.0,62808.0,0.03193]
[1727797702012,0.17578914,62809.0,62808.0,0.03193]
[1727797702503,0.01657714,62809.0,62808.0,0.191145]
[1727797703719,0.01629192,62809.0,62808.0,0.191145]
[1727797703971,0.01729192,62809.0,62808.0,0.03193]
[1727797704224,0.17650392,62809.0,62808.0,0.03193]
[1727797704443,0.17750392,62809.0,62808.0,0.03193]
[1727797704703,0.0815,62806.0,62798.0,0.000822]
[1727797704936,0.159238,62799.0,62798.0,0.000822]
[1727797705670,0.3156958,62799.0,62798.0,0.000822]
[1727797705907,0.4015958,62799.0,62798.0,0.000822]
[1727797706356,0.55804258,62799.0,62798.0,0.000822]
[1727797706595,0.56904258,62799.0,62798.0,0.000822]
[1727797706811,0.57104258,62799.0,62798.0,0.000822]
[1727797707331,0.4125958,62799.0,62798.0,0.000822]
[1727797707574,0.4135958,62799.0,62798.0,0.000822]
[1727797708314,0.98859325,62799.0,62798.0,0.000822]
[1727797708545,0.98859325,62799.0,62772.0,0.318611]
[1727797708546,0.159283,62781.0,62780.0,0.24027704]
[1727797709039,0.159283,62781.0,62780.0,0.000823]
[1727797709315,0.4727799,62781.0,62780.0,0.000823]
[1727797709532,0.3931408,62781.0,62780.0,0.000823]
[1727797709994,0.41809834,62781.0,62780.0,0.000823]
[1727797710497,0.41909834,62781.0,62780.0,0.000823]
[1727797710737,0.3951408,62781.0,62780.0,0.000823]
[1727797711197,0.3941408,62781.0,62780.0,0.000823]
[1727797711445,0.53062018,62781.0,62780.0,0.000823]
[1727797711904,0.52962018,62781.0,62780.0,0.000823]
[1727797712120,0.53062018,62781.0,62780.0,0.000823]
[1727797712564,0.3951408,62781.0,62780.0,0.000823]
[1727797713300,0.3951408,62781.0,62780.0,0.00029996]
[1727797714507,0.1584578,62781.0,62780.0,0.00029996]
[1727797714721,0.002,62781.0,62780.0,0.15958596]
[1727797716118,0.002,62781.0,62780.0,0.00029996]
[1727797716617,0.2251927,62781.0,62780.0,0.00029996]
[1727797717255,0.3816505,62781.0,62780.0,0.00029996]
[1727797717751,0.3177408,62781.0,62780.0,0.00029996]
[1727797717984,0.3177408,62781.0,62780.0,0.15958596]
[1727797717985,0.002,62781.0,62780.0,0.15958596]
[1727797718732,0.002,62781.0,62780.0,0.25958596]
[1727797719878,0.23945404,62790.0,62789.0,0.159263]
[1727797720354,0.23945404,62790.0,62787.0,0.318536]
[1727797720618,0.02496116,62794.0,62789.0,0.159263]
[1727797720842,0.02496116,62794.0,62784.0,0.318551]
[1727797720843,0.33554341,62792.0,62786.0,0.159269]
[1727797721079,0.1564578,62791.0,62787.0,0.159267]
[1727797721322,0.1564578,62791.0,62783.0,0.318556]
[1727797721323,0.1564578,62791.0,62783.0,0.159278]
[1727797721561,0.1564578,62791.0,62780.0,0.00029996]
[1727797721562,0.001,62790.0,62789.0,0.005]
[1727797721805,0.1573387,62790.0,62789.0,0.164263]
[1727797722043,0.1564578,62790.0,62789.0,0.159263]
[1727797722273,0.1564578,62790.0,62784.0,0.31855]
[1727797722497,0.1564578,62789.0,62788.0,0.159266]
[1727797723270,0.001644,62798.0,62781.0,0.318567]
[1727797723510,0.23945404,62795.0,62794.0,0.15925]
[1727797723750,0.39591184,62795.0,62794.0,0.15925]
[1727797724243,0.1564578,62795.0,62794.0,0.15925]
[1727797725264,0.1584578,62795.0,62794.0,0.17525]
[1727797725497,0.002,62795.0,62794.0,0.17525]
[1727797726722,0.002,62795.0,62794.0,0.27623153]
[1727797726976,0.002,62795.0,62794.0,0.27843442]
[1727797727211,0.001,62795.0,62794.0,0.27343442]
[1727797727448,0.001,62795.0,62794.0,0.28553965]
[1727797727686,0.002,62795.0,62794.0,0.63779745]
[1727797727932,0.002,62795.0,62794.0,0.63461303]
[1727797728405,0.001,62795.0,62794.0,0.62961303]
[1727797728633,0.002,62795.0,62794.0,0.63461303]
[1727797729112,0.001,62795.0,62794.0,0.62361303]
[1727797729355,0.001,62795.0,62794.0,0.46715523]
[1727797729615,0.001,62795.0,62794.0,0.48115523]
[1727797729859,0.001,62795.0,62794.0,0.46715523]
[1727797730367,0.001,62795.0,62794.0,0.48115523]
[1727797731073,0.001,62795.0,62794.0,0.63761303]
[1727797731807,0.001,62795.0,62794.0,0.74451303]
[1727797732045,0.001644,62798.0,62797.0,0.261243]
[1727797732307,0.001644,62798.0,62797.0,0.6885178]
[1727797732538,0.001644,62798.0,62797.0,0.4387008]
[1727797733241,0.001644,62798.0,62797.0,0.4157008]
[1727797733466,0.001644,62798.0,62797.0,0.4297008]
[1727797733721,0.002644,62798.0,62797.0,0.287243]
[1727797736125,0.002644,62798.0,62797.0,0.4437008]
[1727797739035,0.002644,62798.0,62797.0,0.287243]
[1727797743066,0.002644,62798.0,62797.0,0.187243]
[1727797743555,0.001644,62798.0,62797.0,0.173243]
[1727797743815,0.001644,62798.0,62797.0,0.014]
[1727797743816,0.23461658,62798.0,62797.0,0.014]
[1727797744058,0.41731824,62798.0,62797.0,0.028]
[1727797744295,0.41731824,62798.0,62787.0,0.318535]
[1727797744296,0.25707824,62798.0,62791.0,0.159258]
[1727797744522,0.25707824,62798.0,62795.0,0.318495]
[1727797744523,0.07715878,62798.0,62795.0,0.318495]
[1727797744742,0.07715878,62798.0,62796.0,0.159245]
[1727797744743,0.01636556,62797.0,62796.0,0.159245]
[1727797745474,0.01636556,62797.0,62796.0,0.259245]
[1727797745712,0.00235878,62798.0,62797.0,0.259243]
[1727797746484,0.00235878,62798.0,62797.0,0.273243]
[1727797746485,0.00135878,62798.0,62797.0,0.273243]
[1727797746746,0.00235878,62798.0,62797.0,0.273243]
[1727797746989,0.00235878,62798.0,62797.0,0.173243]
[1727797747214,0.00135878,62798.0,62797.0,0.173243]
[1727797747728,0.00235878,62798.0,62797.0,0.187243]
[1727797748207,0.00235878,62798.0,62797.0,0.287243]
[1727797749147,0.00235878,62798.0,62797.0,0.4437008]
[1727797749380,0.00235878,62798.0,62797.0,0.47891893]
[1727797749663,0.00235878,62798.0,62797.0,0.45591893]
[1727797750113,0.00135878,62798.0,62797.0,0.44191893]
[1727797750333,0.00135878,62798.0,62797.0,0.42791893]
[1727797750581,0.00235878,62798.0,62797.0,0.45591893]
[1727797751579,0.00235878,62798.0,62797.0,0.47891893]
[1727797752527,0.00235878,62798.0,62797.0,0.49391893]
[1727797752759,0.00235878,62798.0,62797.0,0.49591893]
[1727797752987,0.00235878,62798.0,62797.0,1.48038593]
[1727797753215,7.8e-07,62798.0,62797.0,1.48038593]
[1727797753440,7.8e-07,62798.0,62797.0,0.49591893]
[1727797753673,0.23945404,62807.0,62800.0,0.007]
[1727797753903,0.23916799,62807.0,62806.0,0.61757851]
[1727797754143,0.23916799,62807.0,62806.0,0.77403631]
[1727797754404,0.001644,62817.0,62813.0,0.259202]
[1727797754859,0.25586792,62814.0,62813.0,0.259202]
[1727797755088,0.01641388,62814.0,62813.0,0.259202]
[1727797755367,0.01641388,62814.0,62813.0,0.159202]
[1727797755832,0.09751388,62814.0,62813.0,0.159202]
[1727797756580,0.09751388,62814.0,62813.0,0.173202]
[1727797757082,0.0811,62814.0,62813.0,0.159202]
[1727797757317,0.09758311,62814.0,62813.0,0.187202]
[1727797757818,0.09758311,62814.0,62813.0,0.159202]
[1727797758068,0.09758311,62814.0,62813.0,0.173202]
[1727797758315,0.09758311,62814.0,62813.0,0.187202]
[1727797758541,0.09922711,62814.0,62813.0,0.187202]
[1727797759060,0.01812711,62814.0,62813.0,0.287202]
[1727797759808,0.01812711,62814.0,62813.0,0.273202]
[1727797760034,0.01812711,62814.0,62813.0,0.259202]
[1727797760257,0.001644,62814.0,62813.0,0.273202]
[1727797760508,0.01837311,62814.0,62813.0,0.273202]
[1727797761476,0.01837311,62814.0,62813.0,0.287202]
[1727797761966,0.01837311,62814.0,62813.0,0.27638589]
[1727797762189,0.001644,62814.0,62813.0,0.27638589]
[1727797762663,0.001644,62814.0,62813.0,0.273202]
[1727797762967,0.001644,62814.0,62813.0,0.27305976]
[1727797763218,0.001644,62814.0,62813.0,0.42951756]
[1727797763453,0.001644,62814.0,62813.0,0.46651756]
[1727797763988,0.00135878,62814.0,62813.0,0.46651756]
[1727797764243,0.00135878,62814.0,62813.0,0.45251756]
[1727797765682,0.00135878,62814.0,62813.0,0.27305976]
[1727797766644,0.00135878,62814.0,62813.0,0.25905976]
[1727797766863,0.00135878,62814.0,62813.0,0.28705976]
[1727797767110,0.00135878,62814.0,62813.0,0.27305976]
[1727797767592,0.00135878,62814.0,62813.0,0.42951756]
[1727797768054,0.00135878,62814.0,62813.0,0.44351756]
[1727797768283,0.00135878,62814.0,62813.0,0.42951756]
[1727797768517,0.00135878,62814.0,62813.0,0.41551756]
[1727797769034,0.00135878,62814.0,62813.0,0.43851756]
[1727797769768,0.00135878,62814.0,62813.0,0.45251756]
[1727797770009,0.00135878,62814.0,62813.0,1.57797456]
[1727797770242,0.00135878,62814.0,62813.0,0.83132156]
[1727797770536,0.00135878,62814.0,62813.0,0.69208356]
[1727797770768,0.00135878,62814.0,62813.0,0.45251756]
[1727797771001,0.00135878,62814.0,62813.0,0.46651756]
[1727797771247,0.00135878,62814.0,62813.0,0.45251756]
[1727797771764,0.00135878,62814.0,62813.0,0.46651756]
[1727797773206,0.00135878,62814.0,62813.0,0.45251756]
[1727797773457,0.00135878,62814.0,62813.0,0.46651756]
[1727797773696,0.00135878,62814.0,62813.0,0.45251756]
[1727797773961,0.00078738,62814.0,62813.0,0.46651756]
[1727797775165,0.00078738,62814.0,62813.0,0.64661756]
[1727797777277,0.00078738,62814.0,62813.0,0.64861756]
[1727797777507,3.8e-07,62817.0,62816.0,0.292195]
[1727797777752,3.8e-07,62817.0,62816.0,0.6670688]
[1727797777986,3.8e-07,62817.0,62816.0,0.4486528]
[1727797778260,3.8e-07,62817.0,62816.0,0.4536528]
[1727797778493,3.8e-07,62817.0,62816.0,0.4486528]
[1727797778732,3.8e-07,62817.0,62816.0,0.4386528]
[1727797779432,3.8e-07,62817.0,62816.0,0.259195]
[1727797780616,3.8e-07,62817.0,62816.0,0.273195]
[1727797780841,3.8e-07,62817.0,62816.0,0.259195]
[1727797781081,3.8e-07,62817.0,62816.0,0.273195]
[1727797781558,0.01661906,62817.0,62816.0,0.273195]
[1727797782020,0.01661906,62817.0,62816.0,0.287195]
[1727797782499,3.8e-07,62817.0,62816.0,0.273195]
[1727797782737,0.01663843,62817.0,62816.0,0.287195]
[1727797782986,0.01663843,62817.0,62816.0,0.014]
[1727797783220,0.41508823,62817.0,62816.0,0.014]
[1727797783457,0.188,62816.0,62810.0,0.159208]
[1727797783705,0.24929585,62815.0,62809.0,0.318422]
[1727797783948,0.2323718,62815.0,62814.0,0.1592]
[1727797784188,0.24910349,62815.0,62814.0,0.1592]
[1727797784425,0.24910349,62815.0,62812.0,0.159203]
[1727797784657,0.01673169,62814.0,62811.0,0.159205]
[1727797784907,0.01673169,62814.0,62809.0,0.159212]
[1727797784908,0.17318949,62813.0,62809.0,0.159212]
[1727797785135,0.17318949,62813.0,62807.0,0.160038]
[1727797785136,0.159208,62811.0,62807.0,0.160038]
[1727797785384,0.25023128,62810.0,62807.0,0.000822]
[1727797785627,0.01673169,62809.0,62808.0,0.159215]
[1727797785872,0.01672917,62809.0,62808.0,0.159215]
[1727797786327,0.01672917,62809.0,62807.0,0.000822]
[1727797786562,0.01672917,62808.0,62807.0,0.000822]
[1727797787057,0.09572917,62808.0,62807.0,0.160039]
[1727797787295,0.11324787,62808.0,62807.0,0.000822]
[1727797787542,0.11324787,62808.0,62799.0,0.318475]
[1727797787543,0.45220567,62808.0,62799.0,0.318475]
[1727797787793,0.45220567,62808.0,62792.0,0.31851]
[1727797787794,0.31019057,62807.0,62797.0,0.23945404]
[1727797788044,0.2354578,62807.0,62803.0,0.159227]
[1727797788272,0.2354578,62807.0,62804.0,0.159223]
[1727797788521,0.3946748,62807.0,62804.0,0.159225]
[1727797788765,0.2354578,62807.0,62798.0,0.318478]
[1727797789017,0.079,62807.0,62806.0,0.15922]
[1727797789731,0.23945442,62817.0,62816.0,0.159195]
[1727797789732,3.8e-07,62817.0,62816.0,0.159195]
[1727797790223,0.08310038,62817.0,62816.0,0.159195]
[1727797791179,0.08410038,62817.0,62816.0,0.163195]
[1727797791883,0.08410038,62817.0,62816.0,0.159195]
[1727797791884,0.08310038,62817.0,62816.0,0.159195]
[1727797792364,3.8e-07,62817.0,62816.0,0.173195]
[1727797793112,3.8e-07,62817.0,62816.0,0.159195]
[1727797793368,3.8e-07,62817.0,62809.0,0.159211]
[1727797793369,0.159204,62813.0,62809.0,0.159211]
[1727797793608,0.18802402,62812.0,62808.0,0.31843]
[1727797793838,0.15617258,62812.0,62811.0,0.159207]
[1727797794341,0.15617258,62812.0,62808.0,0.31843]
[1727797794577,0.15617258,62812.0,62810.0,0.159209]
[1727797794824,0.15617258,62812.0,62811.0,0.159207]
[1727797796266,0.15617258,62812.0,62811.0,0.014]
[1727797796536,0.62514418,62812.0,62811.0,0.014]
[1727797796779,0.63114418,62812.0,62811.0,0.028]
[1727797797027,0.63014418,62812.0,62811.0,0.014]
[1727797797295,0.63114418,62812.0,62811.0,0.028]
[1727797797527,0.63214418,62812.0,62811.0,0.014]
[1727797797760,0.63214418,62812.0,62807.0,0.000822]
[1727797797761,0.159215,62808.0,62807.0,0.000822]
[1727797797991,0.3156728,62808.0,62807.0,0.000822]
[1727797798220,0.3970728,62808.0,62807.0,0.000822]
[1727797798471,0.42202892,62808.0,62807.0,0.000822]
[1727797798746,0.43702892,62808.0,62807.0,0.000822]
[1727797798972,0.43702892,62808.0,62789.0,0.159262]
[1727797798973,0.159245,62796.0,62789.0,0.159262]
[1727797799215,0.3157028,62796.0,62789.0,0.318526]